bitfinex-derivatives/quotes_BTCF0:USTF0_20250309
["timestamp","ask_amount","ask_price","bid_price","bid_amount"]
[1741544190492,0.08478,82563.0,82554.0,0.36098168]
[1741544190691,0.08478,82563.0,82556.0,0.2416]
[1741544190993,0.08478,82563.0,82562.0,0.3608]
[1741544191190,0.08478,82563.0,82556.0,0.2416]
[1741544191389,0.3608,82558.0,82554.0,0.00018168]
[1741544191595,0.481941,82555.0,82554.0,0.00018168]
[1741544191798,0.34864,82557.0,82556.0,0.1211395]
[1741544192100,0.34864,82557.0,82554.0,0.00018168]
[1741544192396,0.2258,82556.0,82554.0,0.12132398]
[1741544193005,0.2358,82555.0,82554.0,0.12132398]
[1741544193304,0.2258,82556.0,82554.0,0.00018168]
[1741544193505,0.348441,82555.0,82554.0,0.00018168]
[1741544193695,0.348441,82555.0,82534.0,0.4561]
[1741544193696,0.5881,82555.0,82534.0,0.4561]
[1741544193895,0.3608,82547.0,82534.0,0.4561]
[1741544194097,0.57914,82546.0,82533.0,0.3608]
[1741544194703,0.59146232,82546.0,82533.0,0.3608]
[1741544194898,0.59146232,82546.0,82534.0,0.0605857]
[1741544194899,0.57914,82546.0,82534.0,0.0605857]
[1741544195104,0.57914,82546.0,82533.0,0.3608]
[1741544195301,0.57914,82546.0,82540.0,0.1211625]
[1741544195599,0.57914,82546.0,82537.0,0.1211666]
[1741544195804,0.3608,82538.0,82531.0,0.00018168]
[1741544196000,0.56174,82537.0,82531.0,0.00018168]
[1741544196497,0.1211724,82534.0,82531.0,0.00018168]
[1741544196697,0.4499,82533.0,82531.0,0.00018168]
[1741544197301,0.4499,82533.0,82532.0,0.1211748]
[1741544197499,0.23062803,82533.0,82532.0,0.1211748]
[1741544197705,0.23062803,82533.0,82531.0,0.22558168]
[1741544197905,0.2216,82533.0,82532.0,0.1211748]
[1741544198112,0.11284,82543.0,82532.0,0.587]
[1741544198412,0.01140051,82545.0,82544.0,0.1211572]
[1741544198602,0.11284,82555.0,82547.0,0.1211527]
[1741544198918,0.2216,82554.0,82547.0,0.1211527]
[1741544199103,0.11284,82555.0,82547.0,0.1211527]
[1741544199308,0.2324,82553.0,82545.0,0.36256]
[1741544199503,0.0605735,82551.0,82546.0,0.4509]
[1741544199703,0.11284,82547.0,82546.0,0.1211542]
[1741544200707,0.34524,82547.0,82546.0,0.1211542]
[1741544201013,0.34524,82547.0,82536.0,0.1211681]
[1741544201014,0.1211552,82546.0,82536.0,0.1211681]
[1741544201206,0.3608,82542.0,82534.0,0.4509]
[1741544201514,0.4576,82541.0,82534.0,0.4509]
[1741544201707,0.0605858,82535.0,82523.0,0.2177]
[1741544201904,0.1211748,82532.0,82514.0,0.3608]
[1741544202113,0.1211748,82532.0,82515.0,0.4509]
[1741544202308,0.1211748,82532.0,82514.0,0.0605999]
[1741544202617,0.1211748,82532.0,82512.0,0.2177]
[1741544202618,0.1211748,82532.0,82513.0,0.2194]
[1741544203016,0.201,82530.0,82507.0,0.3608]
[1741544203210,0.3608,82516.0,82508.0,0.060605]
[1741544203413,0.55514,82515.0,82511.0,0.0606024]
[1741544203610,0.55514,82515.0,82507.0,0.3608]
[1741544203817,0.55514,82515.0,82505.0,0.1212135]
[1741544204013,0.1212095,82509.0,82497.0,0.4385]
[1741544204209,0.5787,82508.0,82502.0,0.1212184]
[1741544204407,0.11284,82507.0,82498.0,0.2194]
[1741544204610,0.11284,82507.0,82489.0,0.0606183]
[1741544204611,0.3608,82502.0,82487.0,0.2177]
[1741544204815,0.33543502,82500.0,82491.0,0.1212346]
[1741544205017,0.121225,82498.0,82488.0,0.2194]
[1741544205319,0.3608,82495.0,82481.0,0.2383]
[1741544205510,0.2261,82497.0,82481.0,0.2383]
[1741544205511,0.3608,82485.0,82481.0,0.4715]
[1741544205712,0.3608,82485.0,82478.0,0.2177]
[1741544205713,0.33894,82484.0,82476.0,0.3608]
[1741544206012,0.56464,82484.0,82479.0,0.1212521]
[1741544206212,0.56464,82484.0,82472.0,0.4715]
[1741544206410,0.56464,82484.0,82475.0,0.121258]
[1741544206607,0.3608,82477.0,82472.0,0.5927629]
[1741544206812,0.1212628,82473.0,82460.0,0.1212795]
[1741544207015,0.3608,82474.0,82465.0,0.1212732]
[1741544207016,0.3608,82466.0,82465.0,0.1212732]
[1741544207309,0.36063912,82466.0,82461.0,0.1212776]
[1741544207506,0.4518,82465.0,82454.0,0.3608]
[1741544207707,0.11284,82464.0,82455.0,0.1212875]
[1741544207913,0.11284,82464.0,82456.0,0.1212852]
[1741544208222,0.5003,82463.0,82461.0,0.1212791]
[1741544208521,0.5003,82463.0,82454.0,0.3608]
[1741544208927,0.3608,82456.0,82442.0,0.1213061]
[1741544209116,0.58604,82455.0,82453.0,0.1212902]
[1741544209316,0.11284,82454.0,82442.0,0.1213061]
[1741544209521,0.11284,82454.0,82439.0,0.4553]
[1741544209712,0.3608,82452.0,82439.0,0.4553]
[1741544209916,0.4732,82451.0,82450.0,0.1212953]
[1741544210424,0.4732,82451.0,82445.0,0.1213018]
[1741544210609,0.4732,82451.0,82446.0,0.1213003]
[1741544210809,0.4732,82451.0,82449.0,0.121296]
[1741544211016,0.4732,82451.0,82450.0,0.1212953]
[1741544211216,0.4732,82451.0,82439.0,0.4553]
[1741544211624,0.4732,82451.0,82445.0,0.1213018]
[1741544211919,0.834,82451.0,82439.0,0.4553]
[1741544212110,0.834,82451.0,82440.0,0.0606548]
[1741544212316,0.11288,82450.0,82446.0,0.1213006]
[1741544212511,0.1212976,82449.0,82439.0,0.4553]
[1741544212818,0.4606,82449.0,82439.0,0.4553]
[1741544213422,0.4606,82449.0,82448.0,0.1212982]
[1741544213619,0.219,82449.0,82448.0,0.1212982]
[1741544213826,0.33188,82449.0,82448.0,0.1212982]
[1741544214021,0.11288,82449.0,82448.0,0.1212982]
[1741544214322,0.11288,82456.0,82455.0,0.1212879]
[1741544214523,0.00900837,82458.0,82455.0,0.3608]
[1741544214725,0.2341,82457.0,82456.0,0.1212851]
[1741544214923,0.11288,82461.0,82460.0,0.1212806]
[1741544215125,0.42975054,82483.0,82461.0,0.1212791]
[1741544215322,0.42975054,82483.0,82475.0,0.1212585]
[1741544215323,0.00900837,82476.0,82475.0,0.1212585]
[1741544215628,0.2341,82482.0,82481.0,0.1212497]
[1741544215629,0.455,82482.0,82481.0,0.1212497]
[1741544215824,0.455,82482.0,82481.0,0.4820497]
[1741544216122,0.12188564,82483.0,82481.0,0.4820497]
[1741544216428,0.21619054,82484.0,82483.0,0.1212468]
[1741544217123,0.57699054,82484.0,82469.0,0.234147]
[1741544217317,0.455,82483.0,82482.0,0.4820482]
[1741544217720,0.455,82483.0,82482.0,0.3608]
[1741544218127,0.455,82483.0,82472.0,0.0606313]
[1741544218422,0.455,82483.0,82482.0,0.1212482]
[1741544218724,0.56788,82483.0,82482.0,0.1212482]
[1741544218919,0.56788,82483.0,82482.0,0.4820482]
[1741544219117,0.00018191,82490.0,82489.0,0.1212379]
[1741544219320,0.00018191,82490.0,82489.0,0.4820379]
[1741544219521,0.11288,82505.0,82489.0,0.62368]
[1741544219720,0.11288,82522.0,82504.0,0.3608]
[1741544219922,0.2302,82521.0,82520.0,0.1211924]
[1741544220238,0.02104355,82528.0,82520.0,0.3608]
[1741544220525,0.01205748,82528.0,82527.0,0.4819821]
[1741544220725,0.11288,82535.0,82534.0,0.1211718]
[1741544220917,0.11288,82535.0,82534.0,0.4819718]
[1741544221122,0.11288,82535.0,82534.0,0.3608]
[1741544221324,0.060587,82533.0,82516.0,0.00018178]
[1741544221517,0.11288,82535.0,82516.0,0.00018178]
[1741544221518,0.4488,82532.0,82527.0,0.3608]
[1741544221819,0.4488,82532.0,82531.0,0.1211762]
[1741544222019,0.4488,82532.0,82524.0,0.3608]
[1741544222020,0.4488,82532.0,82520.0,0.0605957]
[1741544222219,0.4488,82532.0,82517.0,0.2782981]
[1741544222220,0.0605911,82527.0,82517.0,0.2177]
[1741544222426,0.121192,82521.0,82517.0,0.2177]
[1741544222629,0.1211968,82517.0,82516.0,0.00018178]
[1741544222931,0.0606011,82514.0,82489.0,0.0606185]
[1741544223124,0.0606011,82514.0,82486.0,0.11288]
[1741544223125,0.3608,82505.0,82490.0,0.0606179]
[1741544223326,0.33306,82504.0,82503.0,0.1212174]
[1741544223521,0.3331,82504.0,82499.0,0.1212225]
[1741544223722,0.3331,82504.0,82491.0,0.3608]
[1741544223919,0.02275261,82516.0,82500.0,0.3608]
[1741544224225,1e-08,82516.0,82515.0,0.4819997]
[1741544224725,0.11316,82542.0,82541.0,0.1211616]
[1741544224926,0.21356,82551.0,82542.0,0.1211601]
[1741544225130,0.00921167,82555.0,82541.0,0.72336]
[1741544225320,0.00916891,82558.0,82551.0,0.3608]
[1741544225520,0.3608,82555.0,82532.0,0.3608]
[1741544225721,0.12216597,82559.0,82527.0,0.58166]
[1741544225722,0.33543502,82550.0,82530.0,0.1211772]
[1741544225924,0.2307,82549.0,82546.0,0.00018178]
[1741544226124,0.00892597,82559.0,82548.0,0.3608]
[1741544226323,0.2265,82566.0,82559.0,0.060567]
[1741544226536,0.11356,82568.0,82566.0,0.1211249]
[1741544226722,0.00920348,82572.0,82566.0,0.1211249]
[1741544226925,0.32919717,82567.0,82548.0,0.5785]
[1741544227236,0.33543502,82560.0,82545.0,0.36098178]
[1741544227437,0.0605754,82549.0,82545.0,0.00018178]
[1741544227633,0.56852,82548.0,82519.0,0.3608]
[1741544227931,0.0605784,82545.0,82519.0,0.3608]
[1741544228139,0.4546,82544.0,82543.0,0.1211586]
[1741544228339,0.11392,82548.0,82542.0,0.3608]
[1741544228533,0.04845,82549.0,82547.0,0.1211527]
[1741544228727,0.0004881,82549.0,82548.0,0.4819513]
[1741544228930,0.11412,82570.0,82569.0,0.1211205]
[1741544229130,0.11412,82570.0,82555.0,0.3608]
[1741544229336,0.00018167,82557.0,82556.0,0.1211395]
[1741544229540,7e-08,82557.0,82556.0,0.4819395]
[1741544229733,7e-08,82557.0,82556.0,0.6319395]
[1741544229924,7e-08,82557.0,82556.0,0.49446381]
[1741544230129,7e-08,82557.0,82556.0,0.64446381]
[1741544230539,7e-08,82557.0,82556.0,0.4819395]
[1741544230738,0.36080007,82557.0,82554.0,0.00018167]
[1741544231040,0.2302,82556.0,82555.0,0.121141]
[1741544231435,0.2302,82556.0,82554.0,0.12132397]
[1741544231436,0.2302,82556.0,82554.0,0.00018167]
[1741544231632,0.35062,82555.0,82554.0,0.00018167]
[1741544232231,0.35062,82555.0,82554.0,0.12132417]
[1741544232630,0.2302,82556.0,82554.0,0.00018167]
[1741544232833,0.121141,82555.0,82554.0,0.00018167]
[1741544233144,0.2312,82555.0,82554.0,0.00018167]
[1741544233330,0.2312,82555.0,82554.0,0.12132417]
[1741544233732,7e-08,82557.0,82554.0,0.12132417]
[1741544233733,7e-08,82557.0,82556.0,0.1211395]
[1741544234235,7e-08,82558.0,82557.0,0.1211381]
[1741544234537,0.08478,82559.0,82557.0,0.7010381]
[1741544234734,0.11412,82590.0,82587.0,0.1210941]
[1741544234934,0.2215,82589.0,82587.0,0.1210941]
[1741544235140,0.2215,82589.0,82588.0,0.1210926]
[1741544235331,0.2215,82589.0,82588.0,0.5891926]
[1741544235735,0.1211029,82581.0,82580.0,0.11388]
[1741544235931,0.11392,82587.0,82574.0,0.2159]
[1741544236136,0.4819043,82580.0,82572.0,0.3608]
[1741544236334,0.4819043,82580.0,82556.0,0.37303279]
[1741544236335,0.1211181,82571.0,82562.0,0.3495298]
[1741544236534,0.56473502,82590.0,82562.0,0.3495298]
[1741544236535,0.11436,82575.0,82574.0,0.1211131]
[1741544236749,0.11452,82575.0,82574.0,0.1211131]
[1741544236944,0.4425,82579.0,82578.0,0.1211073]
[1741544237633,0.00018167,82587.0,82577.0,0.2177]
[1741544237939,7e-08,82587.0,82586.0,0.1210955]
[1741544238132,7e-08,82587.0,82586.0,0.4534355]
[1741544238735,7e-08,82587.0,82586.0,0.8861355]
[1741544240351,7e-08,82587.0,82586.0,1.2469355]
[1741544240842,7e-08,82587.0,82586.0,1.3969355]
[1741544241349,7e-08,82587.0,82586.0,1.2469355]
[1741544241860,7e-08,82587.0,82586.0,0.6995955]
[1741544242145,7e-08,82587.0,82586.0,0.1210955]
[1741544242948,7e-08,82587.0,82570.0,0.21358167]
[1741544242949,0.36080007,82587.0,82570.0,0.21358167]
[1741544243146,0.456,82586.0,82585.0,0.121097]
[1741544243334,0.456,82586.0,82582.0,0.0605506]
[1741544243644,0.456,82586.0,82585.0,0.121097]
[1741544243948,0.27815597,82586.0,82585.0,0.121097]
[1741544244945,0.63895597,82586.0,82565.0,0.3608]
[1741544245147,0.1211175,82571.0,82550.0,0.2177]
[1741544245342,0.48714979,82571.0,82554.0,0.2241]
[1741544245546,0.55423502,82570.0,82563.0,0.1211293]
[1741544245748,0.2188,82570.0,82554.0,0.2846705]
[1741544245939,0.55423502,82570.0,82550.0,0.2177]
[1741544246246,0.0605602,82569.0,82554.0,0.0605711]
[1741544246445,0.1211264,82565.0,82554.0,0.1211415]
[1741544246640,0.060562,82567.0,82552.0,0.00018167]
[1741544246956,0.0605775,82546.0,82518.0,0.2177]
[1741544247154,0.3608,82532.0,82521.0,0.2241]
[1741544247450,0.11368,82531.0,82530.0,0.1211777]
[1741544247652,0.11368,82531.0,82522.0,0.3608]
[1741544247653,0.34248,82531.0,82505.0,0.3608]
[1741544247850,0.0605896,82529.0,82512.0,0.1212036]
[1741544248045,0.2213,82528.0,82518.0,0.1211948]
[1741544248244,0.2213,82528.0,82510.0,0.0606035]
[1741544248550,0.3608,82515.0,82502.0,0.4528]
[1741544248744,0.33502,82514.0,82502.0,0.4528]
[1741544249153,0.33502,82514.0,82513.0,0.1212027]
[1741544249352,0.69582,82514.0,82500.0,0.3608]
[1741544249551,0.33543502,82510.0,82500.0,0.3608]
[1741544249751,0.2213,82509.0,82500.0,0.3608]
[1741544249955,0.2213,82509.0,82507.0,0.1212107]
[1741544250249,0.23668223,82508.0,82507.0,0.0832895]
[1741544250850,0.23668223,82508.0,82500.0,0.5968]
[1741544250851,0.23668223,82508.0,82500.0,0.5986]
[1741544251156,0.2308,82507.0,82500.0,0.5968]
[1741544251359,0.11364,82506.0,82502.0,0.1212178]
[1741544251650,0.3608,82503.0,82500.0,0.00176]
[1741544251853,0.2138,82502.0,82483.0,0.1212466]
[1741544252050,0.3608,82493.0,82478.0,0.2176]
[1741544252254,0.55812,82492.0,82478.0,0.2176]
[1741544252451,0.3608,82484.0,82478.0,0.2176]
[1741544252653,0.5582,82483.0,82477.0,0.65024758]
[1741544252842,0.5582,82483.0,82477.0,0.3608]
[1741544253042,0.00606915,82482.0,82477.0,0.3608]
[1741544253255,0.00606915,82481.0,82477.0,0.3608]
[1741544253452,0.00606915,82480.0,82479.0,0.1212526]
[1741544253751,0.45482825,82480.0,82477.0,0.3608]
[1741544253951,0.00606915,82479.0,82476.0,0.1212563]
[1741544254156,0.00606915,82478.0,82476.0,0.1212563]
[1741544254359,0.0041591,82480.0,82478.0,0.1212541]
[1741544254554,0.01136361,82496.0,82493.0,0.1212321]
[1741544254765,0.00624954,82494.0,82493.0,0.4820321]
[1741544255054,0.00432611,82494.0,82481.0,0.0606245]
[1741544255349,0.2368,82493.0,82492.0,0.1212335]
[1741544255549,0.00432611,82494.0,82493.0,0.1212321]
[1741544255550,8e-08,82494.0,82493.0,0.1212321]
[1741544255749,8e-08,82494.0,82493.0,0.5776321]
[1741544255958,8e-08,82494.0,82493.0,0.3495321]
[1741544256149,8e-08,82494.0,82493.0,0.5776321]
[1741544256349,0.00606764,82494.0,82493.0,0.5776321]
[1741544256554,0.00606764,82494.0,82493.0,0.2283]
[1741544256754,0.14982399,82494.0,82493.0,0.3495321]
[1741544256948,0.14375643,82494.0,82493.0,0.3495321]
[1741544257144,0.14776452,82494.0,82493.0,0.5669321]
[1741544258146,0.02519769,82503.0,82502.0,0.1212188]
[1741544258345,0.3608,82538.0,82502.0,0.1212188]
[1741544258346,0.1164,82538.0,82537.0,0.1211674]
[1741544258548,0.1164,82538.0,82533.0,0.0605859]
[1741544258751,0.1164,82538.0,82520.0,0.11644]
[1741544258752,0.2313,82537.0,82520.0,0.11644]
[1741544259057,0.2313,82537.0,82536.0,0.1211689]
[1741544259355,0.1164,82547.0,82546.0,0.1211542]
[1741544259356,0.00912634,82547.0,82546.0,0.1211542]
[1741544259754,0.00912634,82547.0,82539.0,0.11636]
[1741544259755,0.00018178,82545.0,82539.0,0.11636]
[1741544259957,0.00018178,82545.0,82544.0,0.1211572]
[1741544260151,0.00018178,82545.0,82538.0,0.00018178]
[1741544260356,0.1211645,82539.0,82538.0,0.00018178]
[1741544260748,0.0605832,82538.0,82518.0,0.0605973]
[1741544260952,0.3608,82532.0,82523.0,0.1211872]
[1741544261154,0.35236,82531.0,82517.0,0.2318]
[1741544261356,0.0605979,82518.0,82504.0,0.2177]
[1741544261552,0.3608,82512.0,82498.0,0.3608]
[1741544261761,0.1212185,82503.0,82499.0,0.2318]
[1741544261961,0.4737,82502.0,82494.0,0.2177]
[1741544262263,0.35248,82502.0,82494.0,0.19387803]
[1741544262456,0.35248,82502.0,82495.0,0.1212283]
[1741544262661,0.36477927,82501.0,82495.0,0.08330555]
[1741544262861,0.36477927,82501.0,82500.0,0.1212218]
[1741544263158,0.433,82501.0,82500.0,0.1212218]
[1741544263359,0.11628,82507.0,82506.0,0.121213]
[1741544263555,0.11628,82507.0,82498.0,0.3608]
[1741544263758,0.232,82506.0,82498.0,0.3608]
[1741544263951,0.232,82506.0,82505.0,0.1212144]
[1741544264751,0.11628,82507.0,82506.0,0.121213]
[1741544264958,0.00018178,82513.0,82510.0,0.1212071]
[1741544265157,0.00018178,82513.0,82512.0,0.4820041]
[1741544265460,0.00018178,82513.0,82511.0,0.4557]
[1741544265765,0.00018178,82513.0,82512.0,0.1212041]
[1741544266157,0.00018178,82513.0,82512.0,0.3548041]
[1741544266362,0.00018178,82513.0,82504.0,0.1766475]
[1741544266363,0.00018178,82513.0,82497.0,0.3622]
[1741544266567,0.33543502,82511.0,82491.0,0.3608]
[1741544266864,0.0606133,82497.0,82491.0,0.3608]
[1741544267170,0.4736083,82496.0,82491.0,0.3608]
[1741544267373,0.3608,82492.0,82470.0,0.3608]
[1741544267564,0.15996048,82485.0,82478.0,0.4214268]
[1741544267765,0.35238,82484.0,82478.0,0.3608]
[1741544267964,0.35238,82484.0,82471.0,0.2357]
[1741544267965,0.1212526,82479.0,82471.0,0.2357]
[1741544268265,0.2361,82478.0,82473.0,0.1212614]
[1741544268470,0.2361,82478.0,82471.0,0.4693]
[1741544268665,0.3608,82482.0,82476.0,0.1212567]
[1741544268873,0.3608,82482.0,82471.0,0.4693]
[1741544269070,0.2149,82481.0,82471.0,0.4693]
[1741544269467,0.04849,82480.0,82477.0,0.121255]
[1741544269667,0.04849,82480.0,82479.0,0.1212526]
[1741544270071,0.05242164,82480.0,82479.0,0.1212526]
[1741544270270,0.05242164,82480.0,82479.0,0.5751526]
[1741544270869,0.05242164,82480.0,82479.0,0.8147]
[1741544271367,0.05242164,82480.0,82466.0,0.0606352]
[1741544271572,0.05242164,82480.0,82479.0,0.4820526]
[1741544271770,0.05242164,82480.0,82479.0,0.1212526]
[1741544271962,0.05242164,82480.0,82479.0,0.4820526]
[1741544272164,0.05242164,82480.0,82479.0,0.44412357]
[1741544272367,4e-08,82480.0,82479.0,0.44412357]
[1741544272569,4e-08,82480.0,82479.0,0.66572357]
[1741544272880,4e-08,82480.0,82479.0,1.24562357]
[1741544273077,4e-08,82480.0,82479.0,1.62762357]
[1741544273376,4e-08,82480.0,82479.0,1.84622357]
[1741544275870,4e-08,82480.0,82479.0,1.69622357]
[1741544276071,4e-08,82480.0,82479.0,1.81434357]
[1741544277269,4e-08,82480.0,82479.0,1.6129]
[1741544277576,4e-08,82480.0,82479.0,1.7341526]
[1741544277769,4e-08,82480.0,82479.0,1.8519526]
[1741544278882,4e-08,82480.0,82479.0,1.4897526]
[1741544279883,4e-08,82480.0,82479.0,1.2577526]
[1741544280487,4e-08,82483.0,82482.0,0.1212482]
[1741544280785,2e-08,82490.0,82489.0,0.1212379]
[1741544281094,2e-08,82490.0,82489.0,0.4820379]
[1741544281390,2e-08,82490.0,82489.0,0.7143379]
[1741544281688,0.04105554,82517.0,82516.0,0.1211983]
[1741544281885,0.01193783,82517.0,82516.0,0.77454939]
[1741544282189,0.13313463,82517.0,82516.0,0.3608]
[1741544282486,0.2175,82519.0,82503.0,0.2292]
[1741544282688,0.2175,82516.0,82512.0,0.1212032]
[1741544282879,0.235,82515.0,82514.0,0.1212007]
[1741544283294,0.235,82515.0,82509.0,0.4820076]
[1741544283587,0.2175,82514.0,82513.0,0.1212027]
[1741544283788,0.235,82515.0,82514.0,0.1212012]
[1741544283989,0.00018178,82519.0,82518.0,0.1211953]
[1741544284196,0.00018178,82519.0,82518.0,0.4819953]
[1741544284690,0.16581365,82530.0,82518.0,1.0618953]
[1741544284885,0.16581365,82530.0,82529.0,0.4819792]
[1741544285191,0.16581365,82530.0,82529.0,0.6001392]
[1741544285487,0.16581365,82530.0,82529.0,0.3608]
[1741544285689,0.28699135,82530.0,82529.0,0.3608]
[1741544285881,0.1211895,82522.0,82521.0,0.00018178]
[1741544286081,0.1334796,82522.0,82521.0,0.00018178]
[1741544286283,0.34726,82523.0,82521.0,0.00018178]
[1741544286481,0.01231594,82522.0,82521.0,0.00018178]
[1741544286681,0.4819895,82522.0,82521.0,0.00018178]
[1741544286892,0.0605999,82515.0,82502.0,0.6349291]
[1741544287087,0.57688,82514.0,82508.0,0.1212088]
[1741544287288,0.57688,82514.0,82513.0,0.1212027]
[1741544287486,0.4586,82514.0,82513.0,0.1212027]
[1741544287688,0.11828,82521.0,82513.0,0.3608]
[1741544287891,0.2383,82524.0,82523.0,0.121188]
[1741544288084,0.4749,82524.0,82523.0,0.121188]
[1741544288281,0.28872852,82525.0,82523.0,0.121188]
[1741544288282,0.21059102,82525.0,82524.0,0.1211865]
[1741544288482,8e-08,82527.0,82526.0,0.1211836]
[1741544288697,0.2383,82538.0,82524.0,0.4213927]
[1741544288698,0.2383,82538.0,82524.0,0.5812]
[1741544288898,0.2383,82529.0,82524.0,0.5812]
[1741544289088,0.4749,82529.0,82524.0,0.3608]
[1741544289394,0.3608,82526.0,82517.0,0.2204]
[1741544289693,0.59526,82525.0,82516.0,0.3608]
[1741544289901,0.0605949,82522.0,82509.0,0.12138928]
[1741544290087,0.5354956,82521.0,82509.0,0.12138928]
[1741544290286,0.4749,82521.0,82510.0,0.1212062]
[1741544290497,0.1211944,82519.0,82509.0,0.12138978]
[1741544290693,0.3608,82515.0,82509.0,0.00018178]
[1741544290894,0.0606013,82513.0,82509.0,0.00018178]
[1741544291097,0.2354,82512.0,82509.0,0.00018178]
[1741544291290,0.1212071,82510.0,82509.0,0.00018178]
[1741544291894,0.5847071,82510.0,82509.0,6.054e-05]
[1741544292091,0.121212,82507.0,82497.0,0.1212248]
[1741544292295,0.58394,82506.0,82490.0,0.231]
[1741544292496,1.0659538,82506.0,82495.0,0.1212277]
[1741544292697,0.95699,82506.0,82490.0,0.231]
[1741544292897,0.95699,82506.0,82493.0,0.121231]
[1741544293099,0.58394,82506.0,82495.0,0.3608]
[1741544293298,0.58394,82506.0,82502.0,0.1212184]
[1741544293600,0.04848,82505.0,82502.0,0.1212184]
[1741544293802,0.04848,82505.0,82504.0,0.1212159]
[1741544294098,0.12132,82523.0,82517.0,0.1211968]
[1741544294298,0.2401,82528.0,82517.0,0.8427968]
[1741544294502,8e-08,82518.0,82517.0,0.8427968]
[1741544294801,8e-08,82518.0,82517.0,1.3318568]
[1741544295094,8e-08,82518.0,82517.0,1.6940568]
[1741544295303,0.01802083,82551.0,82541.0,0.1211616]
[1741544295598,0.01802083,82554.0,82541.0,1.0604616]
[1741544295792,0.17446678,82555.0,82541.0,1.2104616]
[1741544295994,0.2298,82554.0,82541.0,1.2817616]
[1741544296189,0.2401,82554.0,82541.0,1.1521616]
[1741544296398,0.00018178,82550.0,82541.0,1.1521616]
[1741544296999,0.2338,82546.0,82541.0,1.1521616]
[1741544297296,0.44577518,82542.0,82541.0,0.2177]
[1741544297695,0.32461508,82542.0,82541.0,0.2177]
[1741544297899,0.32461508,82542.0,82541.0,0.3388616]
[1741544298504,0.226,82545.0,82541.0,0.3388616]
[1741544298505,0.286578,82545.0,82541.0,0.2177]
[1741544298803,0.2338,82544.0,82541.0,0.2177]
[1741544299005,0.2338,82544.0,82543.0,0.4819586]
[1741544299192,0.2338,82544.0,82543.0,0.3608]
[1741544299392,0.2338,82544.0,82415.0,0.22256281]
[1741544299393,0.1211718,82534.0,82527.0,0.3608]
[1741544299598,0.2429718,82534.0,82527.0,0.3608]
[1741544299805,0.1218,82534.0,82518.0,0.36256]
[1741544300002,0.1218,82534.0,82529.0,0.1211791]
[1741544300204,0.1218,82534.0,82529.0,0.242357]
[1741544300500,0.1218,82534.0,82517.0,0.2740781]
[1741544300501,0.1218,82534.0,82511.0,0.58026]
[1741544300692,0.4461,82533.0,82515.0,0.4371]
[1741544300893,0.4461,82533.0,82521.0,0.1211903]
[1741544301097,0.3608,82526.0,82515.0,0.2177]
[1741544301294,0.33543502,82531.0,82511.0,0.72476]
[1741544301295,0.1212041,82512.0,82511.0,0.3246459]
[1741544301499,0.1212056,82511.0,82506.0,0.28768758]
[1741544301696,0.4461,82511.0,82506.0,0.28768758]
[1741544301897,0.4461,82511.0,82507.0,0.1212101]
[1741544302103,0.5673056,82511.0,82506.0,0.28768758]
[1741544302300,0.5673056,82511.0,82503.0,0.00018178]
[1741544302301,0.4461,82511.0,82503.0,0.00018178]
[1741544302494,0.4820159,82504.0,82503.0,0.00018178]
[1741544303196,0.36474889,82504.0,82481.0,0.08332083]
[1741544303404,0.3608,82492.0,82470.0,0.3608]
[1741544303604,0.5592,82491.0,82490.0,0.1212365]
[1741544304001,0.5592,82491.0,82488.0,0.0606192]
[1741544304204,0.0606197,82488.0,82479.0,0.3608]
[1741544304408,0.1212512,82480.0,82479.0,0.3608]
[1741544304597,0.12356,82480.0,82479.0,0.3608]
[1741544304799,0.12356,82480.0,82474.0,0.1212589]
[1741544305001,0.3608,82477.0,82463.0,0.3608]
[1741544305311,0.4378,82476.0,82463.0,0.3608]
[1741544305503,0.44175956,82476.0,82467.0,0.0606346]
[1741544305700,0.44175956,82476.0,82456.0,0.0606425]
[1741544305701,0.7216,82468.0,82444.0,0.3608]
[1741544305900,0.33543502,82453.0,82445.0,0.3608]
[1741544306207,0.4744,82452.0,82449.0,0.1212962]
[1741544306397,0.4744,82452.0,82441.0,0.227]
[1741544306603,0.1213027,82445.0,82435.0,0.3608]
[1741544306806,0.00395956,82451.0,82443.0,0.3608]
[1741544307007,0.4964,82463.0,82450.0,0.3608]
[1741544307208,0.2376,82456.0,82447.0,0.2238]
[1741544307507,0.2479558,82455.0,82452.0,0.1212915]
[1741544307703,0.2479558,82455.0,82448.0,0.2238]
[1741544307904,0.2376,82454.0,82443.0,0.4214521]
[1741544308104,0.24366511,82453.0,82446.0,0.1213003]
[1741544308305,0.3608,82449.0,82439.0,0.227]
[1741544308507,0.2368,82448.0,82447.0,0.1212997]
[1741544308705,0.0111558,82453.0,82447.0,0.3608]
[1741544308909,0.2213,82456.0,82452.0,0.1212923]
[1741544309214,0.3608,82481.0,82475.0,0.0606288]
[1741544309405,0.50037526,82477.0,82476.0,0.121257]
[1741544309600,0.35949526,82477.0,82476.0,0.121257]
[1741544309910,0.14213781,82477.0,82476.0,0.698557]
[1741544310210,0.14213781,82477.0,82476.0,0.2165]
[1741544310508,0.13819526,82477.0,82476.0,0.121257]
[1741544310705,0.13819526,82477.0,82471.0,0.1212637]
[1741544310909,0.13819526,82477.0,82476.0,0.3608]
[1741544311213,0.13819526,82477.0,82476.0,0.482057]
[1741544311913,0.13819526,82477.0,82476.0,0.3608]
[1741544312211,0.13819526,82477.0,82470.0,0.8042]
[1741544312212,0.19882356,82477.0,82470.0,0.442]
[1741544312407,0.456,82476.0,82475.0,0.3608]
[1741544312605,0.13819526,82477.0,82475.0,0.3608]
[1741544312606,0.13819526,82477.0,82476.0,0.121257]
[1741544312808,0.13819526,82477.0,82476.0,0.556457]
[1741544313006,0.13819526,82477.0,82476.0,0.4352]
[1741544313205,0.13819526,82477.0,82476.0,0.556457]
[1741544313610,0.13819526,82477.0,82475.0,0.3608]
[1741544313611,0.2356,82484.0,82475.0,0.3608]
[1741544313805,0.2204,82483.0,82476.0,0.1212562]
[1741544314000,0.2204,82483.0,82469.0,0.4352]
[1741544314203,0.00018189,82485.0,82481.0,0.1212497]
[1741544314204,0.2356,82482.0,82481.0,0.1212497]
[1741544314399,0.00018189,82485.0,82484.0,0.1212453]